Cogmind - Beta 16.1 @@@ ROGUE MODE // 2026.03.10 @ 16:00:48 Player: THEPIGGYGAMER Result: Destroyed by S-10 Pest with Light Assault Rifle Performance ------------- Evolutions (1) 500 Regions Visited (2) 400 Robots Destroyed (29) 145 Value Destroyed (681) 681 Prototype IDs (0) 0 Alien Tech Used (0) 0 Bonus (0) 0 TOTAL SCORE: 1726 Bonus ------- None Cogmind --------- Core Integrity 0/400 Matter 300/300 Energy 99/100 System Corruption 0% Temperature Cool (0) Movement Core (50) Location -9/Materials Parts ------- > --- POWER (2) -------- (None) > --- PROPULSION (3) --- (None) > --- UTILITY (2) ------ (None) > --- WEAPON (2) ------- (None) > --- INVENTORY (5) ---- Compact Matter Pod (150) Weight Redist. System Improved Light Cannon Plasma Cutter Plasma Cutter Peak State ------------ > --- POWER ------------ Ion Engine Ion Engine > --- PROPULSION ------- Hover Unit Hover Unit Improved Hover Unit > --- UTILITY ---------- Weight Redist. System Improved Terrain Scanner > --- WEAPON ----------- Flail Flail > --- INVENTORY -------- Hover Unit Compact Matter Pod Improved Light Cannon Plasma Cutter Plasma Cutter [Rating: 16] Favorites ----------- Power Ion Engine Engine Ion Engine Propulsion Hover Unit Treads Light Treads Leg Aluminum Leg Wheel Wheel Hover Unit Hover Unit Utility Weight Redist. System Device Weight Redist. System Storage Large Storage Unit Protection Light Armor Plating Weapon Autogun Energy Gun EM Pulse Gun Ballistic Gun Autogun Launcher Grenade Launcher Impact Weapon Flail Build | -11 -10 -9 ------- Run | Yrd Mat Mat Slots Evolved 2 | . . 2 Power 1 | . . 1 Propulsion 1 | . . 1 Utility . | . . . Weapon . | . . . Parts Attached 30 | 6 7 17 Power 5 | 1 . 4 Engine 5 | 1 . 4 Core . | . . . Reactor . | . . . Propulsion 11 | 2 2 7 Treads 2 | . . 2 Leg 2 | . 2 . Wheel 2 | 2 . . Hover 5 | . . 5 Flight . | . . . Utility 6 | 1 2 3 Device 3 | . 1 2 Storage 2 | 1 1 . Processor . | . . . Hackware . | . . . Protection 1 | . . 1 Artifact . | . . . Weapon 8 | 2 3 3 Energy Gun 1 | 1 . . Energy Cannon . | . . . Ballistic Gun 3 | 1 2 . Ballistic Cannon . | . . . Launcher 1 | . 1 . Special Weapon . | . . . Impact Weapon 3 | . . 3 Slashing Weapon . | . . . Piercing Weapon . | . . . Special Melee Weapon . | . . . Unidentified Prototypes . | . . . Parts Lost 14 | . 1 13 Power 3 | . . 3 Propulsion 5 | . . 5 Utility 3 | . . 3 Weapon 3 | . 1 2 Highest Loss Streak 5 | . 1 5 To Critical Strikes . | . . . Average Backups 7 | 2 7 6 Power . | . . . Propulsion 1 | 1 3 . Utility . | . . 1 Weapon 2 | . 4 2 Tool/Special . | . . . Unused Backups 8 | 1 . 7 Power 1 | 1 . . Propulsion 1 | . . 1 Utility 2 | . . 2 Weapon 2 | . . 2 Tool/Special 2 | . . 2 Average Slot Usage (%) 91 | . 98 86 Engine 15 | . 14 17 Treads 1 | . . 2 Leg 11 | . 22 4 Wheel 2 | . 5 . Hover 12 | . . 20 Device 13 | . 13 14 Storage 7 | . 14 2 Protection 1 | . . 2 Ballistic Gun 11 | . 24 3 Impact Weapon 10 | . . 18 Peak Build Rating 16 | 6 11 16 Average Rating 11 | 3 9 13 On Entrance 5 | . 6 11 Avg Prop Armor Cover (%) 6 | . . 6 Naked Turns 5 | . . 5 Heaviest Build 34 | 11 29 34 Greatest Support 40 | 20 26 40 Greatest Overweight (x) 4 | . 1 4 Average Overweight (x) . | . . . Largest Inventory Capacity 15 | 8 15 15 Average Capacity 10 | 6 14 7 Most Carried 13 | 6 10 13 Average Carried 7 | 2 8 6 Final Capacity 15 | 8 15 5 Final Carried 10 | 5 10 5 Class Distribution -------------------- 100% | Mutant Dominant Class ---------------- Mutant | -10/Materials Mutant | -9/Materials Resources | -11 -10 -9 ----------- Run | Yrd Mat Mat Matter Collected 900 | 187 99 614 Remotely . | . . . Salvage Created 820 | . 162 658 Parts 30 | . 12 18 Haulers Intercepted 1 | . . 1 Recyclers Shooed 4 | . 2 2 Parts Field Recycled . | . . . Retrieved Matter . | . . . Parts Self-Destructed . | . . . Prevented . | . . . Parts Restored . | . . . Kills | -11 -10 -9 ------- Run | Yrd Mat Mat Combat Hostiles Destroyed 21 | . 7 14 Melee 8 | . . 8 Guns 5 | . 5 . AOE 2 | . 2 . Classes Destroyed 9 | . 4 5 Worker 1 | . 1 . Builder 1 | . . 1 Hauler 1 | . . 1 Recycler 1 | . . 1 Watcher 4 | . 2 2 Swarmer 9 | . 3 6 Grunt 5 | . 4 1 Duelist 1 | . . 1 Sentry 6 | . . 6 Best Kill Streak 6 | . 6 3 Combat Bots Only 4 | . 4 3 Max Kills in Single Turn 3 | . 3 1 Gunslinging . | . . . Exploded 2 | . 2 . Melee 1 | . . 1 Uniques/NPCs Destroyed . | . . . Combat | -11 -10 -9 -------- Run | Yrd Mat Mat Hostile Shots Fired 267 | . 34 233 Missed 88 | . 11 77 Hits 179 | . 23 156 Melee 1 | . . 1 Projectile 178 | . 23 155 Critical Strikes 6 | . 1 5 Damage Taken 1971 | . 315 1656 Core 439 | . 38 401 Absorbed by Shields . | . . . Regen/Repaired (Parts) 83 | . . 83 Core Remaining (%) 92 | 100 84 . Volleys Fired 25 | . 23 2 Largest 2 | . 2 2 Hottest 53 | . 53 46 Shots Fired 44 | . 41 3 Gun 35 | . 32 3 Cannon . | . . . Launcher 9 | . 9 . Special . | . . . Kinetic 35 | . 32 3 Thermal . | . . . Explosive 9 | . 9 . Electromagnetic . | . . . Robot Hit Streak 4 | . 4 2 Robot Miss Streak 4 | . 4 2 Penetration Max . | . . . Secondary Targets 1 | . 1 . Max Gunslinging Chain 1 | . 1 . Shots Hit Robots 67 | . 16 51 Core Hits 20 | . 15 5 Critical Kills 2 | . . 2 Critical Parts Destroyed 8 | . . 8 Critical Strikes 10 | . . 10 Smash 10 | . . 10 Melee Attacks 74 | . . 74 Impact 74 | . . 74 Slashing . | . . . Piercing . | . . . Sneak Attacks 5 | . . 5 Combat Hostiles . | . . . Follow-up Attacks 9 | . . 9 Damage Inflicted 2524 | . 747 1777 Guns 200 | . 165 35 Cannons . | . . . Explosions 582 | . 582 . Melee 1735 | . . 1735 Ramming 7 | . . 7 Kinetic 200 | . 165 35 Thermal . | . . . Explosive 582 | . 582 . Electromagnetic . | . . . Impact 1735 | . . 1735 Slashing . | . . . Piercing . | . . . Highest Corruption 1 | . 1 . Average Corruption 1 | . 1 . Corruption Purged . | . . . Corruption Blocked . | . . . Effects 5 | . 5 . Message Errors 1 | . 1 . Matter Fused 3 | . 3 . Misfires 1 | . 1 . Overload Shots . | . . . Overflow Damage 676 | . 19 657 Projectiles . | . . . Explosions 19 | . 19 . Melee 657 | . . 657 Knockbacks 8 | . . 8 Impact 8 | . . 8 Kinetic . | . . . Secondary . | . . . Self-Inflicted Damage 66 | . 63 3 Shots 4 | . 4 . Rammed 4 | . . 4 Targets Rammed 4 | . . 4 Kicked . | . . . Crushed . | . . . Highest Temperature 71 | . 71 14 Average Temperature 17 | . 19 4 Received Heat Transfer 504 | . 114 390 Siege Activations . | . . . Martial Activations . | . . . Shielding Activations . | . . . Robots Disrupted . | . . . Combat Hostiles . | . . . Robots Corrupted 10 | . . 10 Combat Hostiles 6 | . . 6 Parts Fried 19 | . . 19 Impact Corruptions 27 | . . 27 Robots Melted . | . . . Combat Hostiles . | . . . Parts Melted . | . . . Heat Transferred . | . . . Parts Sabotaged . | . . . Parts Stolen . | . . . Parts Stripped . | . . . Power Chain Reactions . | . . . Alert | -11 -10 -9 ------- Run | Yrd Mat Mat Maximum Alert Level 1 | . . 1 Low Security (%) 81 | 100 100 67 Level 1 18 | . . 32 Level 2 . | . . . Level 3 . | . . . Level 4 . | . . . Level 5 . | . . . High Security . | . . . Max Security . | . . . Peak Influence 249 | . 117 249 Initial . | . . . Average 80 | . 26 120 Influence Increases 983 | . 230 753 Destroy 0b10 Robot/C 420 | . 140 280 Destroy 0b10 Robot/NC 40 | . 15 25 Destroy Leader 130 | . 34 96 Successful Hack 23 | . 16 7 Destroy Structure 25 | . 25 . Partial Spotted 30 | . . 30 Lose Combat Pursuer 315 | . . 315 Influence Decreases 808 | . 230 578 Time Decay 608 | . 220 388 Search Patrol Dispatched 100 | . . 100 Lost Part 100 | . 10 90 Squads Dispatched 1 | . . 1 Investigation 1 | . . 1 Extermination . | . . . Reinforcement . | . . . Assault . | . . . Garrison . | . . . Intercept . | . . . Searches Triggered 1 | . . 1 Construction Impeded . | . . . Haulers Reinforced . | . . . Active Scanning Responses . | . . . Cargo Convoy Interrupts . | . . . Stealth | -11 -10 -9 --------- Run | Yrd Mat Mat Distress Signals 1 | . . 1 Communications Jammed . | . . . Distress Signals . | . . . Times Spotted 59 | . 10 49 Peak Tracking Total 9 | . 5 9 Tactical Retreats 13 | . . 13 Traps | -11 -10 -9 ------- Run | Yrd Mat Mat Traps Triggered 1 | . 1 . Indirectly . | . . . Trap Hack Attempts . | . . . Triggered . | . . . Disarmed . | . . . Reprogrammed . | . . . Reused . | . . . Traps Extracted . | . . . Installed . | . . . Triggered . | . . . Machines | -11 -10 -9 ---------- Run | Yrd Mat Mat Machines Disabled . | . . . Max in Single Turn . | . . . Machines Repaired . | . . . Machines Dismantled . | . . . Machines Sabotaged . | . . . Overloaded Fab Kills . | . . . Hacking | -11 -10 -9 --------- Run | Yrd Mat Mat Machines Accessed 8 | . 5 3 Terminals 5 | . 3 2 Fabricators . | . . . Repair Stations 1 | . . 1 Recycling Units 2 | . 2 . Scanalyzers . | . . . Garrison Access . | . . . Total Hacks 24 | . 11 13 Successful 17 | . 10 7 Failed 7 | . 1 6 Catastrophic 4 | . 1 3 Database Lockouts . | . . . Manual 6 | . . 6 Terminals 10 | . 4 6 Fabricators . | . . . Repair Stations 7 | . . 7 Recycling Units 7 | . 7 . Scanalyzers . | . . . Garrison Access . | . . . Terminal Hacks 5 | . 4 1 Record 2 | . 2 . Alert Level 1 | . 1 . Locate Traps 1 | . 1 . Recall Investigation 1 | . . 1 Fabricator Hacks . | . . . Repair Station Hacks 6 | . . 6 Scan Component 3 | . . 3 Repair 3 | . . 3 Recycling Unit Hacks 6 | . 6 . Recycle Component 2 | . 2 . Process 1 | . 1 . Report Inventory 1 | . 1 . Retrieve Matter 1 | . 1 . Retrieve Components 1 | . 1 . Scanalyzer . | . . . Garrison Access Hacks . | . . . Unauthorized Hacks . | . . . Terminals . | . . . Fabricators . | . . . Repair Stations . | . . . Recycling Units . | . . . Scanalyzers . | . . . Garrison Access . | . . . Data Cores Recovered . | . . . Used . | . . . Hacking Detections 5 | . 3 2 Full Trace Events 1 | . . 1 Feedback Events . | . . . Feedback Blocked . | . . . Robot Schematics Acquired . | . . . Robots Built . | . . . Authchips . | . . . Time . | . . . Total Robot Build Rating . | . . . Part Schematics Acquired . | . . . Parts Built . | . . . Authchips . | . . . Time . | . . . Total Part Build Rating . | . . . Part Studies Acquired . | . . . Parts Repaired 3 | . . 3 Time 84 | . . 84 Parts Recycled 2 | . 2 . Recycled Matter 7 | . 7 . Retrieved Matter 7 | . 7 . Retrieved Components . | . . . Parts Scanalyzed . | . . . Part Schematics Acquired . | . . . Parts Damaged . | . . . Bothacking | -11 -10 -9 ------------ Run | Yrd Mat Mat Used RIF Installer . | . . . Robots Hacked . | . . . Non-combat . | . . . Combat . | . . . Robot Hacks Applied . | . . . Relay Couplers Released . | . . . Fabnet Peak Effective % . | . . . Robots Rewired . | . . . Allies Hacked . | . . . Hacks Repelled . | . . . Allies | -11 -10 -9 -------- Run | Yrd Mat Mat Total Allies . | . . . Largest Group . | . . . Highest-Rated Group . | . . . Highest-Rated Ally . | . . . Total Orders . | . . . Ally Attacks . | . . . Total Damage . | . . . Kills . | . . . Allies Corrupted . | . . . Allies Melted . | . . . Intel | -11 -10 -9 ------- Run | Yrd Mat Mat Active Infowar (turns) 1126 | . . 1126 Terrain 1126 | . . 1126 Robot Analysis Total . | . . . Derelict Logs Recovered . | . . . Drone Launches . | . . . Drone Recoveries . | . . . Exploration | -11 -10 -9 ------------- Run | Yrd Mat Mat Turns Passed 2420 | 47 977 1396 Spaces Moved 1607 | 42 540 1025 Core 28 | 16 . 12 Treads 85 | . . 85 Legs 478 | . 391 87 Wheels 175 | 26 149 . Hover 841 | . . 841 Flight . | . . . Fastest Speed 50 | 50 80 50 Average Speed 110 | 68 162 84 Slowest Speed 260 | 80 190 260 Overloaded Moves . | . . . Propulsion Burnouts . | . . . Robots Hopped . | . . . Potential Cave-ins . | . . . Cave-ins Triggered . | . . . Exploration Rate (%) 33 | 3 53 45 Regions Visited 2 Branch Regions . Pre-discovered Areas . | . . . Known Exits Taken . | . . . Unknown Exits Taken 2 | 1 1 . Scrap Searched . | . . . Spaces Dug . | . . . Terrain Destroyed 24 | . 24 . Melee . | . . . Projectile . | . . . AOE 24 | . 24 . Terrain Rammed . | . . . Walls Destroyed . | . . . Machines Disabled . | . . . Actions | -11 -10 -9 --------- Run | Yrd Mat Mat Total 2117 | 60 605 1452 Wait 331 | . 21 310 Move 1605 | 41 539 1025 Hop . | . . . Pick Up 39 | 12 12 15 Fast Attach 5 | . . 5 Attach 17 | 6 2 9 Detach 1 | . . 1 Swap 14 | . 5 9 Drop 13 | 1 3 9 Fire 25 | . 23 2 Melee 63 | . . 63 Ram 1 | . . 1 Kick . | . . . Crush 3 | . . 3 Escape Stasis . | . . . Rewire . | . . . Trap . | . . . Miscellaneous . | . . . Route ------- -11/Scrapyard -10/Materials (discovered 2 exits: *Mat / [*Min]) -9/Materials (discovered 1 exit: [*Mat]) History --------- Turn | Location | Event 10 | -11/Scrapyard | Discovered new exit (range 16) 48 | -11/Scrapyard | Entered Materials 315 | -10/Materials | Build established: Mutant 349 | -10/Materials | Discovered new exit (range 5) 461 | -10/Materials | Discovered new exit (range 8) 1025 | -10/Materials | Entered another Materials area 1025 | -9/Materials | Evolved 2 slots: Power x1, Propulsion x1 1259 | -9/Materials | Lost 4 parts (1n1u2w) 1825 | -9/Materials | Search patrols dispatched 1949 | -9/Materials | Repaired Weight Redist. System 1976 | -9/Materials | Repaired Ion Engine 2004 | -9/Materials | Repaired Ion Engine 2111 | -9/Materials | Core integrity fell below 50% 2389 | -9/Materials | Core integrity fell below 20% 2401 | -9/Materials | Discovered new exit (range 15) 2416 | -9/Materials | Released all parts (3) 2421 | -9/Materials | Destroyed by S-10 Pest with Light Assault Rifle Last Messages --------------- 02370_ Connecting with Recycling Unit... 02389_ Y-45 Defender destroyed. 02401_ EXIT=FOUND 02403_ C-30 ARC bursts open, deploying its payload. 02403_ S-10 Pest unfolds itself. 02403_ W-16 Scout sends out distress signal. 02405_ Hover Unit destroyed. 02405_ Lgt. Armor Plating destroyed. 02406_ Hover Unit destroyed. 02407_ Imp. Terrain Scanner destroyed. 02412_ Sneak attack on R-06 Scavenger. 02412_ R-06 Scavenger knocked back. 02413_ Ion Engine destroyed. 02416_ Released Mace. 02416_ Released Flail. 02416_ Released Ion Engine. [Achievement: Live, Flee, And Rebuild] 02419_ Slammed into R-06 Scavenger. 02419_ R-06 Scavenger knocked back. Map ----- +----------------------------------------------------+ | | | | | | | #################?#??????????????????????????????? | | # #?#??????????????????????????????? | | # """ #????????????????????????????????? | | # "R" """ #?#??????????????????????????????? | | # " " """ ##???????????????????????????????? | | # """ !! #???????????????????????????????? | | # ! ##????#??????????????????????????? | | # """ """ #??????????????#?????????????????? | | # """ """ /#???????????????????????""???????? | | # """ """ #?????###???????????????"" ??????? | | # #??????#?????#?????????"""???????? | | ########+########??????#??????????????"""????????? | | # #???########?????#######? ?????????? | | # ##### #??????# ##+######## < # | | # = ######## " # | | + # # "%" + | | # # # " # | | # ##### #"" # ##+######## # | | # #?#?### ###"Y ###*###?????????????? | | #### ####?#???# #?#"" #?#/#????????"??????? | | #??#%###????### ### ###/###??? ?????????? | | ####+######?# ##+##### #?????????????? | | # ![! #?# @ ### #?????????????? | | # = #?# r [s= #?????????????? | | ##### #?# ###! #?? ???????? ?? | | ????# #?# ##+##### #?????????????? | | ????# """ """ #### ## #######??? ?????????? | | ????# """ """ #?## ## #???????????????????? | | ??#?# """ """ #??# ##""" #???#???????????????? | | ????# #??# ##""" #???????????????????? | | ?#??#####+#####?## ##""" ##??????????????????? | | ??????# ##### # #???????????????????? | | ???#### ! ########???????????????????? | | ??#??# T #??????#???????????????????? | | ??#???# #?????????#????????????????? | | ??#???# ##### #??????????????????????????? | | ????#?## #############?????#???????????????????? | | ##?????# # #??#????#??#????? ?????????????? | | ???##??# + #??#????????#?#????????????????? | | ???????# # ##?????????????????????????????? | | ?###### # #?????????? ???????????????????? | | "?# # #?##????? ????????????????????? | | ??# + #???????? ?????????????????????? | | " + ########???##?????????????#???????????? | | ??# #??#???????#??????????????????????????? | | ??# #### #?#????????## ????????????????????????? | | ?# ???# #???????###???????????????????????????? | +----------------------------------------------------+ Best States ------------- Heat Dissipation 28 Energy Generation 15 Energy Capacity 400 Matter Stores 300 Matter Capacity 300 Sight Range 16 Terrain Scan Range 16 Terrain Scan Density 10 Additional Mass Support 6 Armor Coverage 150 Evasion (%) 54 Recoil Reduction 2 Item Schematics ----------------- None Robot Schematics ------------------ None Fabricated ------------ Nothing Repaired ---------- Weight Redist. System | 13% | -9/Materials Ion Engine | 21% | -9/Materials Ion Engine | 71% | -9/Materials Studied --------- None Alien Tech Used ----------------- None Achievements -------------- DATA ERROR: Steam Global Achievement% For Emergencies Only Live, Flee, And Rebuild Organ Harvest Overwhelming Suspicious There's More Where That Came From Challenges ------------ None Game ------ Seed GravmagFlakProjector Manual? 0 Play Time 00:38:20 Cumulative 6.3 hours Start 2026.03.10 @ 15:19:39 End 2026.03.10 @ 16:00:48 Sessions 1 Manual Loads 0 Difficulty Rogue Special Mode None Game No. 8 Rogue 8 Adventurer 0 Explorer 0 Win Type - Total 0 Types 0/0/0/0/0/0/0/0/0/0 Lore% 2 Gallery% 9 Achievement% 8 Wizard Run 0 Options --------- Layout 1 ASCII 0 Keyboard 0 Movement Numpad Keybinds 0 Fullscreen 1 Font 24/Cog Map View 50x35 Zoom Use 0% Tactical HUD 1 Map Filters NONE Filters NONE Steam 1 RUN: aecb0993-5a0f-4d0d-aac9-dc6e56b2ae33